Cogmind - Beta 13 *** ADVENTURER MODE // 2024.05.25 @ 21:10:09 Player: Timeslice Result: Destroyed by NH-HXI(R) with Subdweller Laser Performance ------------- Evolutions (0) 0 Regions Visited (2) 400 Robots Destroyed (19) 95 Value Destroyed (482) 482 Prototype IDs (5) 100 Alien Tech Used (0) 0 Bonus (0) 0 TOTAL SCORE: 1077 Bonus ------- None Cogmind --------- Core Integrity 0/250 Matter 300/300 Energy 280/280 System Corruption 0% Temperature Cool (6) Movement Treading (160) Location -10/Subcaves Parts ------- > --- POWER (1) -------- Heavy Ion Engine > --- PROPULSION (2) --- Light Treads Spiked Treads > --- UTILITY (2) ------ (None) > --- WEAPON (2) ------- (None) > --- INVENTORY (5) ---- Heavy Ion Engine Light Treads Targeting Computer Mining Laser Peak State ------------ > --- POWER ------------ Heavy Ion Engine > --- PROPULSION ------- Light Treads Spiked Treads > --- UTILITY ---------- Scrap Shield > --- WEAPON ----------- Assault Rifle Subdweller Machine Gun > --- INVENTORY -------- Heavy Ion Engine Light Treads Targeting Computer Mining Laser [Rating: 13] Favorites ----------- Power Heavy Ion Engine Engine Heavy Ion Engine Propulsion Wheel Treads Light Treads Wheel Wheel Utility Small Storage Unit Device Seismic Detector Storage Small Storage Unit Processor Signal Interpreter Protection Scrap Shield Weapon Light Assault Rifle Energy Cannon Beam Cannon Ballistic Gun Light Assault Rifle Special Weapon Mining Laser Build | -11 -10 -10 ------- Run | Yrd Mat Sub Slots Evolved . | . . . Power . | . . . Propulsion . | . . . Utility . | . . . Weapon . | . . . Parts Attached 28 | 7 13 8 Power 3 | 1 2 . Engine 3 | 1 2 . Core . | . . . Reactor . | . . . Propulsion 9 | 2 4 3 Treads 3 | . . 3 Leg . | . . . Wheel 6 | 2 4 . Hover . | . . . Flight . | . . . Utility 4 | 2 1 1 Device 1 | 1 . . Storage 1 | 1 . . Processor 1 | . 1 . Hackware . | . . . Protection 1 | . . 1 Artifact . | . . . Weapon 12 | 2 6 4 Energy Gun . | . . . Energy Cannon 5 | . 4 1 Ballistic Gun 5 | 2 1 2 Ballistic Cannon . | . . . Launcher . | . . . Special Weapon 2 | . 1 1 Impact Weapon . | . . . Slashing Weapon . | . . . Piercing Weapon . | . . . Special Melee Weapon . | . . . Unidentified Prototypes 1 | . 1 . Parts Lost 6 | . 1 5 Power . | . . . Propulsion . | . . . Utility 2 | . 1 1 Weapon 4 | . . 4 Highest Loss Streak 3 | . 1 3 To Critical Strikes . | . . . Average Slot Usage (%) 97 | . 99 89 Engine 13 | . 13 14 Treads 6 | . . 27 Wheel 21 | . 27 . Device 8 | . 11 . Storage 13 | . 14 10 Processor 4 | . 2 9 Energy Cannon 12 | . 13 8 Ballistic Gun 14 | . 14 14 Naked Turns . | . . . Heaviest Build 32 | 14 18 32 Greatest Support 40 | 20 20 40 Greatest Overweight (x) 1 | . 1 . Average Overweight (x) . | . . . Largest Inventory Capacity 8 | 8 8 8 Average Capacity 7 | 7 8 7 Most Carried 8 | 5 8 8 Average Carried 7 | 2 7 6 Final Capacity 8 | 8 8 5 Final Carried 7 | 5 7 4 Class Distribution -------------------- 100% | Mutant Dominant Class ---------------- Mutant | -10/Materials Mutant | -10/Subcaves Resources | -11 -10 -10 ----------- Run | Yrd Mat Sub Matter Collected 545 | 249 197 99 Remotely . | . . . Salvage Created 611 | 37 472 102 Parts 39 | 4 33 2 Haulers Intercepted 1 | . 1 . Recyclers Shooed . | . . . Parts Field Recycled . | . . . Retrieved Matter . | . . . Parts Self-Destructed . | . . . Prevented . | . . . Kills | -11 -10 -10 ------- Run | Yrd Mat Sub Combat Hostiles Destroyed 13 | . 11 2 Guns 3 | . 1 2 Cannons 10 | . 10 . Classes Destroyed 6 | 1 4 1 Tunneler 2 | 2 . . Hauler 1 | . 1 . Watcher 3 | . 3 . Swarmer 3 | . 3 . Grunt 8 | . 8 . Subdweller 2 | . . 2 Best Kill Streak 4 | 1 4 2 Combat Bots Only 4 | . 4 2 Max Kills in Single Turn 1 | 1 1 1 Gunslinging . | . . . Exploded . | . . . Melee . | . . . Uniques/NPCs Destroyed . | . . . Combat | -11 -10 -10 -------- Run | Yrd Mat Sub Hostile Shots Fired 109 | . 34 75 Missed 21 | . 6 15 Damage Taken 1216 | . 229 987 Core 250 | . 51 199 Absorbed by Shields . | . . . Ignored by Resistances 355 | . 72 283 Regen/Repaired (Parts) 29 | . 29 . Core Remaining (%) 100 | 100 . . Volleys Fired 59 | 3 39 17 Largest 2 | 2 2 2 Hottest 100 | 40 100 100 Shots Fired 105 | 6 77 22 Gun 60 | 6 38 16 Cannon 43 | . 38 5 Launcher . | . . . Special 2 | . 1 1 Kinetic 60 | 6 38 16 Thermal 45 | . 39 6 Explosive . | . . . Electromagnetic . | . . . Robot Hit Streak 15 | 4 15 6 Robot Miss Streak 6 | . 6 1 Penetration Max . | . . . Secondary Targets . | . . . Shots Hit Robots 67 | 4 46 17 Core Hits 27 | 2 21 4 Critical Kills . | . . . Critical Parts Destroyed . | . . . Critical Strikes 1 | . . 1 Destroy 1 | . . 1 Melee Attacks . | . . . Impact . | . . . Slashing . | . . . Piercing . | . . . Sneak Attacks . | . . . Combat Hostiles . | . . . Follow-up Attacks . | . . . Damage Inflicted 911 | 50 656 205 Guns 340 | 50 137 153 Cannons 571 | . 519 52 Explosions . | . . . Melee . | . . . Ramming . | . . . Kinetic 340 | 50 137 153 Thermal 571 | . 519 52 Explosive . | . . . Electromagnetic . | . . . Impact . | . . . Slashing . | . . . Piercing . | . . . Highest Corruption . | . . . Average Corruption . | . . . Corruption Purged . | . . . Corruption Blocked . | . . . Overload Shots . | . . . Overflow Damage 14 | . 14 . Projectiles 14 | . 14 . Explosions . | . . . Melee . | . . . Knockbacks . | . . . Impact . | . . . Kinetic . | . . . Secondary . | . . . Self-Inflicted Damage . | . . . Shots . | . . . Rammed . | . . . Targets Rammed . | . . . Kicked . | . . . Crushed . | . . . Highest Temperature 266 | . 266 8 Average Temperature 76 | . 79 3 Received Heat Transfer 414 | . 147 267 Effects 2 | . 2 . Interference 2 | . 2 . Siege Activations . | . . . Robots Corrupted . | . . . Combat Hostiles . | . . . Parts Fried . | . . . Impact Corruptions . | . . . Robots Melted . | . . . Combat Hostiles . | . . . Parts Melted 3 | . 2 1 Heat Transferred 1184 | . 1073 111 Parts Sabotaged . | . . . Parts Stolen . | . . . Parts Stripped . | . . . Power Chain Reactions . | . . . Alert | -11 -10 -10 ------- Run | Yrd Mat Sub Peak Influence 204 | 10 204 . Initial 5 | . 5 . Average 62 | 3 68 . Maximum Alert Level 1 | . 1 . Low Security (%) 98 | 100 98 . Level 1 1 | . 1 . Level 2 . | . . . Level 3 . | . . . Level 4 . | . . . Level 5 . | . . . High Security . | . . . Max Security . | . . . Squads Dispatched 5 | . 5 . Investigation 5 | . 5 . Extermination . | . . . Reinforcement . | . . . Assault . | . . . Garrison . | . . . Intercept . | . . . Searches Triggered . | . . . Construction Impeded . | . . . Haulers Reinforced . | . . . Active Scanning Responses . | . . . Cargo Convoy Interrupts . | . . . Stealth | -11 -10 -10 --------- Run | Yrd Mat Sub Distress Signals . | . . . Communications Jammed . | . . . Distress Signals . | . . . Times Spotted 30 | . 17 13 Peak Tracking Total 9 | . 6 9 Tactical Retreats 2 | . 1 1 Traps | -11 -10 -10 ------- Run | Yrd Mat Sub Traps Triggered 5 | . 5 . Indirectly . | . . . Trap Hack Attempts . | . . . Triggered . | . . . Disarmed . | . . . Reprogrammed . | . . . Reused 1 | . . 1 Traps Extracted . | . . . Installed 1 | . . 1 Triggered . | . . . Machines | -11 -10 -10 ---------- Run | Yrd Mat Sub Machines Disabled 1 | . 1 . Max in Single Turn 1 | . 1 . Machines Repaired . | . . . Machines Dismantled . | . . . Machines Sabotaged . | . . . Overloaded Fab Kills . | . . . Hacking | -11 -10 -10 --------- Run | Yrd Mat Sub Machines Accessed 9 | . 9 . Terminals 8 | . 8 . Fabricators . | . . . Repair Stations 1 | . 1 . Recycling Units . | . . . Scanalyzers . | . . . Garrison Access . | . . . Total Hacks 31 | . 31 . Successful 12 | . 12 . Failed 19 | . 19 . Catastrophic 3 | . 3 . Database Lockouts . | . . . Manual 16 | . 16 . Terminals 28 | . 28 . Fabricators . | . . . Repair Stations 3 | . 3 . Recycling Units . | . . . Scanalyzers . | . . . Garrison Access . | . . . Terminal Hacks 10 | . 10 . Part Schematic 2 | . 2 . Robot Analysis 1 | . 1 . Prototype ID Bank 4 | . 4 . Branch Access Points 1 | . 1 . Hauler Manifests 1 | . 1 . Zone Layout 1 | . 1 . Fabricator Hacks . | . . . Repair Station Hacks 2 | . 2 . Scan Component 1 | . 1 . Repair 1 | . 1 . Recycling Unit Hacks . | . . . Scanalyzer . | . . . Garrison Access Hacks . | . . . Unauthorized Hacks . | . . . Terminals . | . . . Fabricators . | . . . Repair Stations . | . . . Recycling Units . | . . . Scanalyzers . | . . . Garrison Access . | . . . Data Cores Recovered . | . . . Used . | . . . Hacking Detections 9 | . 9 . Full Trace Events 7 | . 7 . Feedback Events . | . . . Feedback Blocked . | . . . Robot Schematics Acquired . | . . . Robots Built . | . . . Authchips . | . . . Time . | . . . Total Robot Build Rating . | . . . Part Schematics Acquired 2 | . 2 . Parts Built . | . . . Authchips . | . . . Time . | . . . Total Part Build Rating . | . . . Parts Repaired 1 | . 1 . Time 26 | . 26 . Parts Recycled . | . . . Recycled Matter . | . . . Retrieved Matter . | . . . Retrieved Components . | . . . Parts Scanalyzed . | . . . Part Schematics Acquired . | . . . Parts Damaged . | . . . Bothacking | -11 -10 -10 ------------ Run | Yrd Mat Sub Used RIF Installer . | . . . Robots Hacked . | . . . Non-combat . | . . . Combat . | . . . Robot Hacks Applied . | . . . Relay Couplers Released . | . . . Fabnet Peak Effective % . | . . . Robots Rewired . | . . . Allies Hacked . | . . . Hacks Repelled . | . . . Allies | -11 -10 -10 -------- Run | Yrd Mat Sub Total Allies . | . . . Largest Group . | . . . Highest-Rated Group . | . . . Highest-Rated Ally . | . . . Total Orders . | . . . Ally Attacks . | . . . Total Damage . | . . . Kills . | . . . Allies Corrupted . | . . . Allies Melted . | . . . Intel | -11 -10 -10 ------- Run | Yrd Mat Sub Robot Analysis Total 1 | . 1 . Derelict Logs Recovered . | . . . Drone Launches . | . . . Drone Recoveries . | . . . Exploration | -11 -10 -10 ------------- Run | Yrd Mat Sub Turns Passed 1525 | 111 1071 343 Spaces Moved 1098 | 77 846 175 Core 1 | 1 . . Treads 170 | . . 170 Legs . | . . . Wheels 927 | 76 846 5 Hover . | . . . Flight . | . . . Fastest Speed 50 | 50 80 80 Average Speed 92 | 79 80 157 Slowest Speed 160 | 80 95 160 Overloaded Moves . | . . . Propulsion Burnouts . | . . . Robots Hopped . | . . . Cave-ins Triggered . | . . . Exploration Rate (%) 39 | 4 95 19 Regions Visited 2 Branch Regions 1 Pre-discovered Areas . | . . . Known Exits Taken 1 | . 1 . Unknown Exits Taken 1 | 1 . . Scrap Searched 4 | . . 4 Spaces Dug 1 | . 1 . Terrain Destroyed 1 | . 1 . Melee . | . . . Projectile 1 | . 1 . AOE . | . . . Terrain Rammed . | . . . Walls Destroyed . | . . . Machines Disabled . | . . . Actions | -11 -10 -10 --------- Run | Yrd Mat Sub Total 1500 | 117 1164 219 Wait 291 | 26 256 9 Move 1096 | 76 845 175 Hop . | . . . Pick Up 14 | 5 7 2 Fast Attach 15 | 7 7 1 Attach 5 | . 1 4 Detach 2 | . . 2 Swap 8 | . 5 3 Drop 7 | . 4 3 Fire 59 | 3 39 17 Melee . | . . . Ram . | . . . Kick . | . . . Crush . | . . . Escape Stasis . | . . . Rewire . | . . . Trap 1 | . . 1 Miscellaneous 2 | . . 2 Route ------- -11/Scrapyard -10/Materials (discovered 6 exits: *Mat x3 / *Min x2 / *Sub) -10/Subcaves History --------- Turn | Location | Event 51 | -11/Scrapyard | Discovered new exit (range 15) 112 | -11/Scrapyard | Entered Materials 318 | -10/Materials | Build established: Mutant 609 | -10/Materials | Discovered new exit (range 15) 651 | -10/Materials | Discovered new exit (range 16) 789 | -10/Materials | Discovered new exit (range 5) 848 | -10/Materials | Discovered new exit (range 7) 850 | -10/Materials | Discovered new exit (range 6) 896 | -10/Materials | Repaired Wheel 1040 | -10/Materials | Discovered new exit (range 8) 1049 | -10/Materials | Identified exit to Materials 1061 | -10/Materials | Identified exit to Mines 1181 | -10/Materials | Identified exit to Subcaves 1183 | -10/Materials | Entered Subcaves 1336 | -10/Subcaves | Ambushed by swarm of Subdwellers 1338 | -10/Subcaves | Ambushed by Subdwellers from Twisted Machinery 1338 | -10/Subcaves | Ambushed by Subdwellers from Twisted Machinery 1338 | -10/Subcaves | Ambushed by Subdwellers from Twisted Machinery 1393 | -10/Subcaves | Lost 4 allies 1430 | -10/Subcaves | Core integrity fell below 50% 1472 | -10/Subcaves | Core integrity fell below 20% 1526 | -10/Subcaves | Destroyed by NH-HXI(R) with Subdweller Laser Last Messages --------------- 01427_ Beam Cannon destroyed. 01429_ Discarded Signal Interpreter. 01430_ Dropped Sml. Storage Unit. 01432_ Sub. Optics melted. 01432_ 7A-O6C(R) destroyed. 01445_ GA-CKU(R) suffers critical hit (Destroy). 01449_ GA-CKU(R) destroyed. 01455_ Acquired Lgt. Treads. 01459_ Subatomizers dissect the Sub. Machine Gun. 01459_ Scrap Shield Fragment affixed to Scrap Shield (+44). 01464_ Installed Piercing Trap. 01465_ Acquired 48 matter. 01468_ Acquired Sub. Machine Gun. 01478_ Scrap Shield destroyed. 01495_ Assault Rifle destroyed. 01503_ Sub. Machine Gun destroyed. 1M-I87(R) emerges from concealment. 01514_ YO-JXL(u) builds Twisted Machinery. Map ----- +----------------------------------------------------+ | ?????????????????????????????????????????????????? | | ?????????????????????????????????????????????????? | | ?????????????????????????????????????????????????? | | ?????????????????????????????????????????????????? | | ?????????????????????????????????????????????????? | | ?????????????????????????????????????????????????? | | ?????????????????????????????????????????????????? | | ?????????????????????????????????????????????????? | | ?????????????????????????????????????????????????? | | ?????????????????????????????????????????????????? | | ??????????????????????##?????????????????????????? | | ??????????????????????# #????????????????????????? | | ??????????????????????#% ????????????????????????? | | ??????????????????##??# ##??????????????????????? | | ??????????????????? ?## ##?????????????????????? | | ????????????????????# #" ##############????????? | | ????????????????????# ## # # # ##???????? | | ??????????????????????#" #???????? | | ??????????????????????# [ #?????## # | | ??????????????????????### ## # ##%/##?? | | ??????????????????????### ###########!! ## | | ??????????????????????# ] #?????## # %[ | | ??????????????????????##% #?????# | ### | | ???????????????????????# ###????# [ ### ##??? | | ??????????????????????## #????## ##?# ##???? | | ??????????????????????# @ #?????## %* ##?##????? | | ??????????????????????#%# #??????#*!= ####????? | | ??????????????????????### ##?????# ! ##???? | | ???????????????????????### %###??## ##??? | | ?????????????????????### #### #??? | | ????????????????????## % # #??? | | ????????????????????#"" ## ### | | ????????????????????##" ## ## #?# | | ????????????????????##"### ## R ## #??# | | ????????????????????# ?# R ### ##???# ## | | ???????????????????### ## R #????## #? | | ????????????????#### """ ##????????? | | ????????????????? " """" # ### #?????????? | | ????????????????? """ """ "# # ##?## ##????????? | | ??????????????????"""""##" #####???# ###??????? | | ?????????????????## #?# "#???????## ##?????? | | ?????????? ?????# ?## #????????## #?????? | | ?????????? ??????# ?# #?????????## #?????? | | ?????????? ??????# #### #??????????# ##?????? | | ?????????? ##????# # #??????????# ###??????? | | ?????????? ?????# %#??????????###????????? | | ?????????? ????## # #%#?????????????????????? | | ?????????? ##???#" #####?????????????????????? | | ?????????? #???# ##?????????????????????????? | | ??????????# #???# & ####???????????????????????? | +----------------------------------------------------+ Best States ------------- Heat Dissipation 25 Energy Generation 14 Energy Capacity 280 Matter Stores 300 Matter Capacity 300 Sight Range 16 Terrain Scan Density 10 Armor Coverage 800 Resistance: KI 20 Resistance: TH 20 Resistance: EX 20 Resistance: EM 20 Resistance: I 20 Resistance: S 20 Resistance: P 20 Evasion (%) 44 Recoil Reduction 2 Offensive Hacking 10 Item Schematics ----------------- Med. Storage Unit | -10/Materials | Hacked Wheel | -10/Materials | Hacked Robot Schematics ------------------ None Fabricated ------------ Nothing Alien Tech Used ----------------- None Achievements -------------- None Challenges ------------ None Game ------ Seed SuspensionAuthchipPlating Manual? 0 Play Time 00:33:43 Cumulative 24.5 hours Start 2024.05.25 @ 20:34:11 End 2024.05.25 @ 21:10:09 Sessions 1 Manual Loads 0 Difficulty Adventurer Special Mode None Game No. 6 Rogue 0 Adventurer 6 Explorer 0 Win Type - Total 1 Types 1/0/0/0/0/0/0/0/0 Lore% 23 Gallery% 28 Achievement% 28 Wizard Run 0 Options --------- Layout 1 ASCII 0 Keyboard 0 Movement Mouse Keybinds 0 Fullscreen 1 Font 24/Smallcaps Map View 50x35 Zoom Use 0% Tactical HUD 1 Map Filters NONE Filters NONE Steam 1 RUN: 7f380706-1de6-4b10-af27-65563de76934